fUST/lending_fUST_20251231
["ID","MTS","AMOUNT","RATE_DAILY","PERIOD"]
[400154194,1767157863290,-1000.0,0.0002766,5]
[400154195,1767157863299,-726.0,0.00027664,3]
[400154196,1767157863308,-1182.23,0.00027671,2]
[400154197,1767157863318,-793.64,0.00027671,2]
[400154198,1767157863328,-3532.14,0.00027671,2]
[400154199,1767157863337,-1000.0,0.0002768,5]
[400154200,1767157863346,-1000.0,0.0002768,5]
[400154201,1767157863355,-1203.225924,0.0002768,5]
[400154202,1767157863364,-150.0,0.000277,2]
[400154203,1767157863374,-1000.0,0.000277,5]
[400154204,1767157863383,-1000.0,0.000277,5]
[400154205,1767157863392,-1000.0,0.000277,5]
[400154206,1767157863401,-150.0,0.000277,10]
[400154207,1767157863410,-707.69680823,0.00027712,7]
[400154208,1767157863419,-508.73857112,0.0002772,7]
[400154209,1767157863429,-296.64266988,0.0002772,7]
[400154210,1767157863439,-500.0,0.00027767,5]
[400154211,1767157863449,-500.0,0.00027767,5]
[400154212,1767157863458,-500.0,0.00027767,20]
[400154213,1767157863467,-500.0,0.00027767,5]
[400154214,1767157863476,-500.0,0.00027767,20]
[400154215,1767157863486,-500.0,0.00027767,5]
[400154216,1767157863495,-22912.49057637,0.000278,7]
[400154217,1767157863505,-1041.66666667,0.000278,7]
[400154218,1767157863515,-1000.0,0.00027823,7]
[400154219,1767157863524,-309.12501589,0.00027828,2]
[400154220,1767157863533,-1000.0,0.000279,7]
[400154221,1767157863542,-1182.23,0.00027945,2]
[400154222,1767157863551,-793.64,0.00027945,2]
[400154223,1767157863561,-3532.14,0.00027945,2]
[400154224,1767157863570,-1000.0,0.00027974,7]
[400154225,1767157863579,-190.89,0.00028,2]
[400154226,1767157863589,-1380.56,0.00028,14]
[400154227,1767157863598,-14885.98,0.00028,2]
[400154228,1767157863608,-768.35081862,0.00028002,2]
[400154229,1767157863617,-800.0,0.00028016,2]
[400154230,1767157863627,-800.0,0.00028028,2]
[400154231,1767157863637,-160.73,0.000281,7]
[400154232,1767157863646,-800.0,0.00028141,2]
[400154233,1767157863655,-366.22616164,0.00028145,2]
[400154234,1767157863665,-800.0,0.00028159,2]
[400154235,1767157863675,-800.0,0.00028167,2]
[400154236,1767157863684,-269.57652258,0.00028179,2]
[400154237,1767157863694,-800.0,0.0002818,2]
[400154238,1767157863704,-500.0,0.00028184,7]
[400154239,1767157863714,-1182.4117958,0.00028219,2]
[400154240,1767157863724,-793.83277577,0.00028219,2]
[400154241,1767157863734,-3532.19477138,0.00028219,2]
[400154242,1767157863744,-800.0,0.00028223,2]
[400154243,1767157863754,-800.0,0.00028238,2]
[400154244,1767157863764,-1000.0,0.00028281,7]
[400154245,1767157863774,-800.0,0.0002834,2]
[400154246,1767157863784,-800.0,0.00028345,2]
[400154247,1767157863793,-236.53722422,0.00028359,20]
[400154248,1767157863803,-800.0,0.00028361,2]
[400154249,1767157863812,-1000.0,0.00028387,7]
[400154250,1767157863822,-800.0,0.00028421,2]
[400154251,1767157863839,-210.26203509,0.00028422,2]
[400154252,1767157863859,-233.96989355,0.00028475,5]
[400154253,1767157863881,-150.0,0.00028493,60]
[400154254,1767157863902,-500.0,0.00028493,60]
[400154255,1767157863913,-206.49040661,0.00028493,60]
[400154256,1767157863924,-500.0,0.00028493,60]
[400154257,1767157863937,-500.0,0.00028493,60]
[400154258,1767157863959,-185.07294294,0.00028493,60]
[400154259,1767157863980,-150.0,0.00028493,60]
[400154260,1767157864001,-500.0,0.00028493,60]
[400154261,1767157864014,-152.45803495,0.00028493,60]
[400154262,1767157864025,-150.0,0.00028493,60]
[400154263,1767157864035,-202.63669157,0.00028493,60]
[400154264,1767157864051,-500.0,0.00028493,60]
[400154265,1767157864063,-150.0,0.00028493,60]
[400154266,1767157864075,-150.0,0.00028493,60]
[400154267,1767157864085,-186.93979994,0.00028493,60]
[400154268,1767157864095,-163.84512541,0.00028493,60]
[400154269,1767157864104,-209.25266303,0.00028493,60]
[400154270,1767157864114,-500.0,0.00028493,60]
[400154271,1767157864123,-500.0,0.00028493,60]
[400154272,1767157864132,-150.0,0.00028493,2]
[400154273,1767157864143,-159.59435749,0.00028493,60]
[400154274,1767157864153,-150.0,0.00028493,60]
[400154275,1767157864163,-169.6762874,0.00028493,60]
[400154276,1767157864172,-222.4123433,0.00028493,60]
[400154277,1767157864182,-186.0,0.00028495,3]
[400154278,1767157864192,-141017.69132678,0.000285,7]
[400154279,1767157864931,-281.92608156,0.00012019,2]
[400154280,1767157864940,-1809.12592469,0.00012019,2]
[400154281,1767157864949,-500.0,0.00012019,2]
[400154282,1767157864959,-1809.12592469,0.00012019,2]
[400154283,1767157864968,-500.0,0.00012019,2]
[400154284,1767157864977,-1809.12592469,0.00012019,2]
[400154285,1767157864987,-1809.12592469,0.00012019,2]
[400154286,1767157864996,-500.0,0.00012019,2]
[400154287,1767157865005,-1809.12592469,0.00012019,2]
[400154288,1767157865015,-1809.12592469,0.00012019,2]
[400154289,1767157865024,-1809.12592469,0.00012019,2]
[400154290,1767157865033,-1809.12592469,0.00012019,2]
[400154291,1767157865043,-636.24065852,0.00012019,2]
[400154292,1767157865052,-500.0,0.00012019,2]
[400154293,1767157865061,-1809.12592469,0.00012019,2]
[400154294,1767157865070,-1809.12592469,0.00012019,2]
[400154295,1767157865080,-1809.12592469,0.00012019,2]
[400154296,1767157865089,-1809.12592469,0.00012019,2]
[400154297,1767157865098,-1809.12592469,0.00012019,2]
[400154298,1767157865108,-82.61415075,0.00012019,2]
[400154299,1767157865186,-604.0,0.00012019,2]
[400154300,1767157865197,-585.5673309,0.00012019,2]
[400154301,1767157902994,422.235,0.00011778,2]
[400154302,1767157906917,500.0,0.00028767,120]
[400154303,1767157919761,-300.0,0.00012018,2]
[400154304,1767157922340,300.0,0.00012017,2]
[400154305,1767157923707,-177.34376529,0.00012018,2]
[400154306,1767157928387,-301.65979336,0.00012018,2]
[400154307,1767157930398,-367.44157774,0.00012018,2]
[400154308,1767157934917,-281.29,0.00012018,2]
[400154309,1767157950849,5000.0,0.00012018,2]
[400154310,1767157966197,500.0,0.00012017,2]
[400154311,1767157966232,343.69507691,0.00012017,2]
[400154312,1767157966261,1595.45499891,0.00012017,2]
[400154313,1767157966294,1595.45499891,0.00012017,2]
[400154314,1767157966399,65.40492527,0.00012017,2]
[400154315,1767157966422,1530.05007364,0.00012017,2]
[400154316,1767157966500,1595.45499891,0.00012017,2]
[400154317,1767157966564,1595.45499891,0.00012017,2]
[400154318,1767157966597,1595.45499891,0.00012017,2]
[400154319,1767157966625,500.0,0.00012017,2]
[400154320,1767157966662,1595.45499891,0.00012017,2]
[400154321,1767157966698,1588.13993072,0.00012017,2]
[400154322,1767157966721,7.31506819,0.00012017,2]
[400154323,1767157966753,1595.45499891,0.00012017,2]
[400154324,1767157966785,1595.45499891,0.00012017,2]
[400154325,1767157966813,500.0,0.00012017,2]
[400154326,1767157966867,500.0,0.00012017,2]
[400154327,1767157966896,1595.45499891,0.00012017,2]
[400154328,1767157966925,1595.45499891,0.00012017,2]
[400154329,1767157966971,312.68540069,0.00012017,2]
[400154330,1767157967003,1595.45499891,0.00012017,2]
[400154331,1767157967036,702.73453657,0.00012017,2]
[400154332,1767157967059,892.72046234,0.00012017,2]
[400154333,1767157967094,1595.45499891,0.00012017,2]
[400154334,1767157967260,1595.45499891,0.00012017,2]
[400154335,1767157967493,1595.45499891,0.00012017,2]
[400154336,1767157967573,1595.45499891,0.00012017,2]
[400154337,1767157967779,1595.45499891,0.00012017,2]
[400154338,1767157967833,1130.01454311,0.00012017,2]
[400154339,1767157967857,465.4404558,0.00012017,2]
[400154340,1767157967912,1595.45499891,0.00012017,2]
[400154341,1767157968346,500.0,0.00012017,2]
[400154342,1767157968376,500.0,0.00012017,2]
[400154343,1767157968405,500.0,0.00012017,2]
[400154344,1767157968433,500.0,0.00012017,2]
[400154345,1767157968461,500.0,0.00012017,2]
[400154346,1767157968499,500.0,0.00012017,2]
[400154347,1767157968527,500.0,0.00012017,2]
[400154348,1767157968567,632.49773018,0.00012017,2]
[400154349,1767157968603,500.0,0.00012017,2]
[400154350,1767157968632,500.0,0.00012017,2]
[400154351,1767157968660,500.0,0.00012017,2]
[400154352,1767157968694,500.0,0.00012017,2]
[400154353,1767157968727,500.0,0.00012017,2]
[400154354,1767157968757,500.0,0.00012017,2]
[400154355,1767157968785,500.0,0.00012017,2]
[400154356,1767157968814,306.61681511,0.00012017,2]
[400154357,1767157968838,193.38318489,0.00012017,2]
[400154358,1767157968867,500.0,0.00012017,2]
[400154359,1767157968896,500.0,0.00012017,2]
[400154360,1767157968931,582.01261689,0.00012017,2]
[400154361,1767157968960,500.0,0.00012017,2]
[400154362,1767157968988,500.0,0.00012017,2]
[400154363,1767157969017,500.0,0.00012017,2]
[400154364,1767157969046,429.67052517,0.00012017,2]
[400154365,1767157969074,500.0,0.00012017,2]
[400154366,1767157969102,424.52064432,0.00012017,2]
[400154367,1767157969136,500.0,0.00012017,2]
[400154368,1767157969166,500.0,0.00012017,2]
[400154369,1767157969195,500.0,0.00012017,2]
[400154370,1767157969237,500.0,0.00012017,2]
[400154371,1767157969274,500.0,0.00012017,2]
[400154372,1767157969343,500.0,0.00012017,2]
[400154373,1767157969371,500.0,0.00012017,2]
[400154374,1767157973656,1870.42302873,0.00012018,2]
[400154375,1767157973680,3129.57697127,0.00012018,2]
[400154376,1767157983011,300.0,0.00012017,2]
[400154377,1767157983900,500.0,0.00012017,2]
[400154378,1767157983932,500.0,0.00012017,2]
[400154379,1767157992427,1063.63666594,0.00012017,2]
[400154380,1767157992482,1063.63666594,0.00012017,2]
[400154381,1767157992517,1063.63666594,0.00012017,2]
[400154382,1767157992546,1063.63666594,0.00012017,2]
[400154383,1767157992575,1063.63666594,0.00012017,2]
[400154384,1767157992615,1063.63666594,0.00012017,2]
[400154385,1767157992660,1063.63666594,0.00012017,2]
[400154386,1767157992824,1063.63666594,0.00012017,2]
[400154387,1767157992956,190.91667248,0.00012017,2]
[400154388,1767157992983,872.71999346,0.00012017,2]
[400154389,1767157993033,1063.63666594,0.00012017,2]
[400154390,1767157993185,1063.63666594,0.00012017,2]
[400154391,1767157993255,1063.63666594,0.00012017,2]
[400154392,1767157993307,1063.63666594,0.00012017,2]
[400154393,1767157993391,1063.63666594,0.00012017,2]
[400154394,1767157996582,225.63281174,0.00012018,2]
[400154395,1767158042385,300.0,0.00012017,2]
[400154396,1767158102116,300.0,0.00012017,2]
[400154397,1767158102174,300.0,0.00012017,2]
[400154398,1767158108519,245.0,0.00012017,2]
[400154399,1767158110034,1200.0,0.00012017,2]
[400154400,1767158124449,625.83308113,0.00012017,2]
[400154401,1767158130424,509.11251299,0.00012017,2]
[400154402,1767158133583,103.52827098,0.00012017,2]
[400154403,1767158133608,137.05828286,0.00012017,2]
[400154404,1767158154903,9862.95171714,0.00011387,2]
[400154405,1767158154928,10000.01,0.00011387,2]
[400154406,1767158161101,-3574.84792796,0.00011387,2]
[400154407,1767158162388,300.0,0.00012017,2]
[400154408,1767158214721,151.0,0.000118,2]
[400154409,1767158214992,151.0,0.000117,2]
[400154410,1767158215364,151.0,0.000116,2]
[400154411,1767158215635,151.0,0.000114,2]
[400154412,1767158215931,151.0,0.000113,2]
[400154413,1767158216206,151.0,0.000112,2]
[400154414,1767158225181,-151.0,0.000119,2]
[400154415,1767158240268,-151.0,0.00012,2]
[400154416,1767158255495,-300.0,0.00012017,2]
[400154417,1767158287156,-300.0,0.00012017,2]
[400154418,1767158292581,463.0,0.00012017,2]
[400154419,1767158292611,207.35873939,0.00011918,2]
[400154420,1767158298717,-300.0,0.00012017,2]
[400154421,1767158301391,817.55,0.0001199,2]
[400154422,1767158304931,151.33812187,0.00011918,2]
[400154423,1767158342546,300.0,0.00012016,2]
[400154424,1767158381392,807.14,0.00012003,2]
[400154425,1767158402111,300.0,0.00012016,2]
[400154426,1767158404801,589.0,0.00012017,2]
[400154427,1767158410070,1200.0,0.00012016,2]
[400154428,1767158421602,887.04123392,0.00028767,120]
[400154432,1767158462291,300.0,0.00012016,2]
[400154433,1767158503037,337.788,0.00011778,2]
[400154434,1767158522259,300.0,0.00012016,2]
[400154435,1767158539708,500.0,0.00028767,120]
[400154436,1767158582597,300.0,0.00012016,2]
[400154437,1767158642517,300.0,0.00012016,2]
[400154438,1767158645210,151.33812186,0.00011937,2]
[400154439,1767158702174,300.0,0.00012016,2]
[400154440,1767158710329,1200.0,0.00012016,2]
[400154449,1767158762257,300.0,0.00012016,2]
[400154466,1767158822570,300.0,0.00012016,2]
[400154471,1767158882309,300.0,0.00012016,2]
[400154473,1767158892134,2563.40575627,0.00011918,2]
[400154474,1767158892164,10000.01,0.00011918,2]
[400154475,1767158892193,10000.01,0.00011918,2]
[400154476,1767158892221,10000.01,0.00011918,2]
[400154477,1767158892249,10000.01,0.00011918,2]
[400154478,1767158892276,10000.01,0.00011918,2]
[400154479,1767158892307,10000.01,0.00011918,2]
[400154480,1767158892339,10000.01,0.00011918,2]
[400154481,1767158896450,-513.9138015,0.00011918,2]
[400154482,1767158897977,-187.23850627,0.00011918,2]
[400154483,1767158901155,-625.42610291,0.00011918,2]
[400154484,1767158903216,-231.69814697,0.00011918,2]
[400154485,1767158905253,-222.83310953,0.00011918,2]
[400154486,1767158906817,-192.71981792,0.00011918,2]
[400154487,1767158909258,-503.11240054,0.00011918,2]
[400154489,1767158912839,-218.71,0.00011918,2]
[400154490,1767158915383,-544.06,0.00011918,2]
[400154491,1767158917235,-531.82573339,0.00011918,2]
[400154492,1767158919134,192.71981792,0.00011918,2]
[400154493,1767158919168,-437.99092383,0.00011918,2]
[400154494,1767158921870,-371.18334278,0.00011918,2]
[400154498,1767158938805,168.41058769,0.00011917,2]
[400154499,1767158939118,1108.50031591,0.00011917,2]
[400154500,1767158939721,500.0,0.00011917,2]
[400154501,1767158940044,500.0,0.00011917,2]
[400154502,1767158940461,1108.50031591,0.00011917,2]
[400154503,1767158940557,1108.50031591,0.00011917,2]
[400154504,1767158940588,618.87978048,0.00011917,2]
[400154505,1767158941021,1108.50031591,0.00011917,2]
[400154506,1767158941053,1108.50031591,0.00011917,2]
[400154507,1767158941087,1108.50031591,0.00011917,2]
[400154508,1767158941296,1108.50031591,0.00011917,2]
[400154509,1767158941326,260.49760254,0.00011917,2]
[400154510,1767158941351,848.00271337,0.00011917,2]
[400154511,1767158941383,1108.50031591,0.00011917,2]
[400154512,1767158941410,1108.50031591,0.00011917,2]
[400154513,1767158941440,1108.50031591,0.00011917,2]
[400154514,1767158941469,1108.50031591,0.00011917,2]
[400154515,1767158941499,1108.50031591,0.00011917,2]
[400154516,1767158941529,1108.50031591,0.00011917,2]
[400154517,1767158941557,1108.50031591,0.00011917,2]
[400154518,1767158941587,1108.50031591,0.00011917,2]
[400154519,1767158941615,284.00475935,0.00011917,2]
[400154520,1767158941639,824.49555656,0.00011917,2]
[400154521,1767158941674,1108.50031591,0.00011917,2]
[400154522,1767158941707,1108.50031591,0.00011917,2]
[400154523,1767158941736,1108.50031591,0.00011917,2]
[400154524,1767158941783,1108.50031591,0.00011917,2]
[400154525,1767158941812,1108.50031591,0.00011917,2]
[400154526,1767158941842,1108.50031591,0.00011917,2]
[400154527,1767158941870,1108.50031591,0.00011917,2]
[400154528,1767158941898,1108.50031591,0.00011917,2]
[400154529,1767158941927,307.51191616,0.00011917,2]
[400154530,1767158941954,800.98839975,0.00011917,2]
[400154531,1767158941983,1108.50031591,0.00011917,2]
[400154532,1767158942012,1108.50031591,0.00011917,2]
[400154533,1767158942045,1108.50031591,0.00011917,2]
[400154534,1767158942075,1108.50031591,0.00011917,2]
[400154535,1767158942882,300.0,0.00011917,2]
[400154536,1767158958136,-39032.43582822,0.00011918,2]
[400154537,1767158973813,500.0,0.00011917,2]
[400154538,1767158973856,500.0,0.00011917,2]
[400154539,1767158973895,500.0,0.00011917,2]
[400154540,1767158973936,500.0,0.00011917,2]
[400154541,1767158973981,500.0,0.00011917,2]
[400154542,1767158974032,500.0,0.00011917,2]
[400154543,1767158974085,500.0,0.00011917,2]
[400154544,1767158974124,589.58939655,0.00011917,2]
[400154545,1767158974171,500.0,0.00011917,2]
[400154546,1767158974240,500.0,0.00011917,2]
[400154547,1767158974286,500.0,0.00011917,2]
[400154548,1767158974337,500.0,0.00011917,2]
[400154549,1767158974380,500.0,0.00011917,2]
[400154550,1767158974422,500.0,0.00011917,2]
[400154551,1767158979085,500.0,0.00011917,2]
[400154552,1767158979459,500.0,0.00011917,2]
[400154553,1767158979758,500.0,0.00011917,2]
[400154554,1767158979823,500.0,0.00011917,2]
[400154555,1767158980123,500.0,0.00011917,2]
[400154556,1767158981423,110.42060345,0.00011917,2]
[400154557,1767158981446,40.91751841,0.00011917,2]
[400154558,1767158982556,500.0,0.00011917,2]
[400154559,1767158986482,500.0,0.00011917,2]
[400154560,1767158986511,490.60113713,0.00011917,2]
[400154561,1767158986580,500.0,0.00011917,2]
[400154562,1767158986688,500.0,0.00011917,2]
[400154563,1767158986795,500.0,0.00011917,2]
[400154564,1767158986953,500.0,0.00011917,2]
[400154565,1767158986983,500.0,0.00011917,2]
[400154566,1767158987015,500.0,0.00011917,2]
[400154567,1767158987255,500.0,0.00011917,2]
[400154568,1767159002405,500.0,0.00011917,2]
[400154569,1767159002439,500.0,0.00011917,2]
[400154570,1767159002469,500.0,0.00011917,2]
[400154571,1767159002498,500.0,0.00011917,2]
[400154572,1767159002527,250.0,0.00011917,2]
[400154573,1767159002556,500.0,0.00011917,2]
[400154574,1767159002584,500.0,0.00011917,2]
[400154575,1767159002618,421.23183517,0.00011917,2]
[400154576,1767159002647,500.0,0.00011917,2]
[400154577,1767159002679,500.0,0.00011917,2]
[400154578,1767159002708,297.25950929,0.00011917,2]
[400154579,1767159002732,202.74049071,0.00011917,2]
[400154580,1767159002820,300.0,0.00011917,2]
[400154581,1767159004536,588.0,0.00011918,2]
[400154582,1767159004842,312.0,0.0001,2]
[400154583,1767159007248,312.0,0.000102,2]
[400154584,1767159009655,312.0,0.000104,2]
[400154585,1767159012020,312.0,0.000106,2]
[400154586,1767159014392,312.0,0.000108,2]
[400154587,1767159016807,312.0,0.00011,2]
[400154588,1767159019843,500.0,0.00011917,2]
[400154589,1767159019880,500.0,0.00011917,2]
[400154590,1767159019927,500.0,0.00011917,2]
[400154591,1767159019969,500.0,0.00011917,2]
[400154592,1767159020009,500.0,0.00011917,2]
[400154593,1767159020045,500.0,0.00011917,2]
[400154594,1767159020086,500.0,0.00011917,2]
[400154595,1767159020119,157.92726828,0.00011917,2]
[400154596,1767159020159,500.0,0.00011917,2]
[400154597,1767159020188,500.0,0.00011917,2]
[400154598,1767159020223,500.0,0.00011917,2]
[400154606,1767159031685,-219392.73332214,0.00011918,2]
[400154607,1767159031756,-972.72,0.00011918,2]
[400154634,1767159038324,-15002.69008244,0.00011918,2]
[400154635,1767159038336,-560397.36727748,0.00011918,2]
[400154636,1767159038347,-1839.187663,0.00011918,2]
[400154637,1767159038358,-3921.72438981,0.00011918,2]
[400154638,1767159038369,-3664.0724537,0.00011918,2]
[400154639,1767159038380,-10005.0754213,0.00011918,2]
[400154640,1767159038392,-1143.75644152,0.00011918,2]
[400154641,1767159038404,-67484.04947848,0.00011918,2]
[400154642,1767159038413,-770.92732356,0.00012017,2]
[400154643,1767159038422,-314.81929193,0.00012017,2]
[400154644,1767159038432,-50000.0,0.00012259,2]
[400154645,1767159038442,-300.0,0.00012259,2]
[400154646,1767159038451,-300.0,0.00012259,2]
[400154647,1767159038460,-300.0,0.00012259,2]
[400154648,1767159038470,-300.0,0.00012259,2]
[400154649,1767159038479,-300.0,0.00012259,2]
[400154650,1767159038488,-300.0,0.00012259,2]
[400154651,1767159038498,-300.0,0.00012259,2]
[400154652,1767159038507,-300.0,0.00012259,2]
[400154653,1767159038517,-300.0,0.00012259,2]
[400154654,1767159038526,-300.0,0.00012259,2]
[400154655,1767159038536,-300.0,0.00012259,2]
[400154656,1767159038546,-300.0,0.00012259,2]
[400154657,1767159038556,-300.0,0.00012259,2]
[400154658,1767159038565,-300.0,0.00012259,2]
[400154659,1767159038575,-300.0,0.00012259,2]
[400154660,1767159038584,-600.0,0.00012259,2]
[400154661,1767159038594,-796.87,0.00012292,2]
[400154662,1767159038603,-1349.51,0.00012329,2]
[400154663,1767159038612,-1124.59,0.00012329,2]
[400154664,1767159038622,-1593.74,0.00012878,2]
[400154665,1767159038631,-420.0,0.00013083,2]
[400154666,1767159038640,-500.0,0.00013273,2]
[400154667,1767159038651,-500.0,0.00013273,2]
[400154668,1767159038660,-381.16221649,0.00013273,2]
[400154669,1767159038670,-500.0,0.00013273,2]
[400154670,1767159038679,-177.12142034,0.00013273,2]
[400154671,1767159038689,-585.46093203,0.00013273,2]
[400154672,1767159038698,-500.0,0.00013273,2]
[400154673,1767159038710,-500.0,0.00013273,2]
[400154674,1767159038720,-502.45533374,0.00013273,2]
[400154675,1767159038728,-500.0,0.00013273,2]
[400154676,1767159038738,-500.0,0.00013273,2]
[400154677,1767159038747,-500.0,0.00013273,2]
[400154678,1767159038757,-160.63497667,0.00013273,2]
[400154679,1767159038766,-500.0,0.00013273,2]
[400154680,1767159038775,-500.0,0.00013273,2]
[400154681,1767159038784,-500.0,0.00013273,2]
[400154682,1767159038794,-500.0,0.00013273,2]
[400154683,1767159038804,-500.0,0.00013273,2]
[400154684,1767159038813,-500.0,0.00013273,2]
[400154685,1767159038822,-500.0,0.00013273,2]
[400154686,1767159038832,-500.0,0.00013273,2]
[400154687,1767159038841,-500.0,0.00013273,2]
[400154688,1767159038851,-500.0,0.00013273,2]
[400154689,1767159038861,-500.0,0.00013273,2]
[400154690,1767159038870,-500.0,0.00013273,2]
[400154691,1767159038879,-500.0,0.00013273,2]
[400154692,1767159038888,-500.0,0.00013273,2]
[400154693,1767159038897,-500.0,0.00013273,2]
[400154694,1767159038907,-500.0,0.00013273,2]
[400154695,1767159038916,-500.0,0.00013273,2]
[400154696,1767159038925,-500.0,0.00013273,2]
[400154697,1767159038934,-500.0,0.00013273,2]
[400154698,1767159038943,-500.0,0.00013273,2]
[400154699,1767159038953,-500.0,0.00013273,2]
[400154700,1767159038963,-500.0,0.00013273,2]
[400154701,1767159038973,-500.0,0.00013273,2]
[400154702,1767159038983,-500.0,0.00013273,2]
[400154703,1767159038993,-500.0,0.00013273,2]
[400154704,1767159039002,-500.0,0.00013273,2]
[400154705,1767159039013,-500.0,0.00013273,2]
[400154706,1767159039024,-501.55479895,0.00013273,2]
[400154707,1767159039034,-500.0,0.00013273,2]
[400154708,1767159039044,-500.0,0.00013273,2]
[400154709,1767159039055,-459.90209075,0.00013273,2]
[400154710,1767159039064,-500.0,0.00013273,2]
[400154711,1767159039074,-499.96763801,0.00013273,2]
[400154712,1767159039083,-500.0,0.00013273,2]
[400154713,1767159039094,-500.0,0.00013273,2]
[400154714,1767159039103,-151.33812186,0.00013409,2]
[400154715,1767159039113,-2390.61,0.00013463,2]
[400154716,1767159039122,-720.0,0.00013485,2]
[400154717,1767159039131,-10000.0,0.0001354,2]
[400154718,1767159039141,-300.0,0.00013673,2]
[400154719,1767159039150,-302.87133682,0.00013698,2]
[400154720,1767159039159,-500.0,0.00013698,2]
[400154721,1767159039168,-500.0,0.00013698,2]
[400154722,1767159039179,-500.0,0.00013698,2]
[400154723,1767159039188,-500.0,0.00013698,2]
[400154724,1767159039197,-500.0,0.00013698,2]
[400154725,1767159039207,-500.0,0.00013698,2]
[400154726,1767159039216,-500.0,0.00013698,2]
[400154727,1767159039225,-500.0,0.00013698,2]
[400154728,1767159039234,-500.0,0.00013698,2]
[400154729,1767159039243,-500.0,0.00013698,2]
[400154730,1767159039252,-500.0,0.00013698,2]
[400154731,1767159039274,-500.0,0.00013698,2]
[400154732,1767159039285,-500.0,0.00013698,2]
[400154733,1767159039295,-509.84191311,0.00013698,2]
[400154734,1767159039306,-500.0,0.00013698,2]
[400154735,1767159039315,-262.16767073,0.00013698,2]
[400154736,1767159039326,-1435.82,0.00013698,2]
[400154737,1767159039336,-1435.82,0.00013698,2]
[400154738,1767159039346,-1435.82,0.00013698,2]
[400154739,1767159039356,-1435.82,0.00013698,2]
[400154740,1767159039365,-1435.82,0.00013698,2]
[400154741,1767159039375,-1435.82,0.00013698,2]
[400154742,1767159039385,-1435.82,0.00013698,2]
[400154743,1767159039395,-1435.82,0.00013698,2]
[400154744,1767159039404,-1435.82,0.00013698,2]
[400154745,1767159039413,-1435.82,0.00013698,2]
[400154746,1767159039423,-1435.82,0.00013698,2]
[400154747,1767159039432,-1435.82,0.00013698,2]
[400154748,1767159039442,-1435.82,0.00013698,2]
[400154749,1767159039451,-1435.82,0.00013698,2]
[400154750,1767159039461,-1435.82,0.00013698,2]
[400154751,1767159039470,-1435.82,0.00013698,2]
[400154752,1767159039479,-1435.82,0.00013698,2]
[400154753,1767159039489,-1435.82,0.00013698,2]
[400154754,1767159039499,-1435.82,0.00013698,2]
[400154755,1767159039509,-1435.82,0.00013698,2]
[400154756,1767159039518,-887.856808,0.00013699,2]
[400154758,1767159039528,-1000.0,0.00013699,2]
[400154759,1767159039538,-500.0,0.00013699,2]
[400154761,1767159039548,-500.0,0.00013699,2]
[400154762,1767159039557,-500.0,0.00013699,2]
[400154769,1767159039743,-500.0,0.00013699,2]
[400154770,1767159039753,-500.0,0.00013699,2]